Cogmind - Beta 16 @@@ ROGUE MODE // 2025.10.23 @ 05:26:41 Player: time Result: Destroyed self with Subdweller Shrapnel Launcher Performance ------------- Evolutions (0) 0 Regions Visited (2) 400 Robots Destroyed (27) 135 Value Destroyed (444) 444 Prototype IDs (0) 0 Alien Tech Used (0) 0 Bonus (0) 0 TOTAL SCORE: 979 Bonus ------- None Cogmind --------- Core Integrity 0/250 Matter 121/300 Energy 99/100 System Corruption 0% Temperature Cool (0) Movement Core (150) Ox2 Location -10/Subcaves Parts ------- > --- POWER (1) -------- (None) > --- PROPULSION (2) --- (None) > --- UTILITY (2) ------ Signal Interpreter > --- WEAPON (2) ------- Light Assault Rifle Subdweller Shrapnel Launcher > --- INVENTORY (5) ---- High-capacity Storage Unit Small Laser Grenade Launcher Peak State ------------ > --- POWER ------------ Subdweller Power Source > --- PROPULSION ------- Wheel Subdweller Monowheel > --- UTILITY ---------- Signal Interpreter Seismic Detector > --- WEAPON ----------- Light Assault Rifle Subdweller Shrapnel Launcher > --- INVENTORY -------- Subdweller Power Source High-capacity Storage Unit Small Laser Grenade Launcher [Rating: 10] Favorites ----------- Power Subdweller Power Source Engine Subdweller Power Source Propulsion Aluminum Leg Leg Aluminum Leg Wheel Wheel Utility Signal Interpreter Device Seismic Detector Storage Small Storage Unit Processor Signal Interpreter Weapon Light Assault Rifle Energy Gun Small Laser Ballistic Gun Light Assault Rifle Ballistic Cannon Light Cannon Launcher Subdweller Shrapnel Launcher Build | -11 -10 -10 ------- Run | Yrd Mat Sub Slots Evolved . | . . . Power . | . . . Propulsion . | . . . Utility . | . . . Weapon . | . . . Parts Attached 16 | 7 4 5 Power 4 | 1 1 2 Engine 4 | 1 1 2 Core . | . . . Reactor . | . . . Propulsion 4 | 2 . 2 Treads . | . . . Leg 2 | 2 . . Wheel 2 | . . 2 Hover . | . . . Flight . | . . . Utility 3 | 2 1 . Device 1 | 1 . . Storage 1 | 1 . . Processor 1 | . 1 . Hackware . | . . . Protection . | . . . Artifact . | . . . Weapon 5 | 2 2 1 Energy Gun 1 | 1 . . Energy Cannon . | . . . Ballistic Gun 1 | 1 . . Ballistic Cannon 1 | . 1 . Launcher 2 | . 1 1 Special Weapon . | . . . Impact Weapon . | . . . Slashing Weapon . | . . . Piercing Weapon . | . . . Special Melee Weapon . | . . . Unidentified Prototypes . | . . . Parts Lost 8 | . . 8 Power 2 | . . 2 Propulsion 4 | . . 4 Utility 1 | . . 1 Weapon 1 | . . 1 Highest Loss Streak 5 | . . 5 To Critical Strikes . | . . . Average Backups 3 | 1 4 3 Power . | . . . Propulsion . | 1 1 . Utility . | . 1 1 Weapon 1 | . 1 2 Tool/Special . | . . . Unused Backups 4 | . 2 2 Power 1 | . . 1 Propulsion 2 | . 2 . Utility 1 | . . 1 Weapon . | . . . Tool/Special . | . . . Average Slot Usage (%) 77 | . 100 64 Engine 13 | . 14 13 Leg 11 | . 28 2 Wheel 1 | . . 2 Device 6 | . 14 2 Processor 13 | . 11 14 Energy Gun 4 | . 8 2 Ballistic Gun 10 | . 7 11 Ballistic Cannon 5 | . 10 2 Launcher 7 | . . 11 Peak Build Rating 10 | 7 7 10 Average Rating 6 | 5 7 6 On Entrance 4 | . 7 7 Avg Prop Armor Cover (%) . | . . . Naked Turns . | . . . Heaviest Build 14 | 13 13 14 Greatest Support 30 | 20 20 30 Greatest Overweight (x) 4 | . . 4 Average Overweight (x) 1 | . . 3 Largest Inventory Capacity 8 | 8 8 5 Average Capacity 5 | 7 5 5 Most Carried 5 | 2 5 5 Average Carried 3 | 1 4 3 Final Capacity 8 | 8 5 5 Final Carried 5 | 2 5 3 Class Distribution -------------------- 95% | Mutant 4% | Scavenger-Mutant Dominant Class ---------------- Mutant | -10/Materials Mutant | -10/Subcaves Resources | -11 -10 -10 ----------- Run | Yrd Mat Sub Matter Collected 645 | 284 200 161 Remotely . | . . . Salvage Created 517 | 180 232 105 Parts 44 | 15 16 13 Haulers Intercepted . | . . . Recyclers Shooed 1 | . 1 . Parts Field Recycled . | . . . Retrieved Matter . | . . . Parts Self-Destructed 10 | . . 10 Prevented . | . . . Parts Restored . | . . . Kills | -11 -10 -10 ------- Run | Yrd Mat Sub Combat Hostiles Destroyed 19 | . 9 10 Guns 2 | . 2 . Cannons 7 | . 3 4 AOE 10 | . 4 6 Classes Destroyed 7 | 2 3 2 Tunneler 5 | 4 1 . Recycler 2 | 1 1 . Watcher 1 | . 1 . Swarmer 12 | . 6 6 Grunt 4 | . 3 1 Sentry 1 | . . 1 Subdweller 2 | . . 2 Best Kill Streak 7 | 4 6 7 Combat Bots Only 7 | . 6 7 Max Kills in Single Turn 4 | 1 2 4 Gunslinging . | . . . Exploded 4 | . 2 4 Melee . | . . . Uniques/NPCs Destroyed . | . . . Combat | -11 -10 -10 -------- Run | Yrd Mat Sub Hostile Shots Fired 115 | . 46 69 Missed 37 | . 17 20 Hits 78 | . 29 49 Projectile 78 | . 29 49 AOE 2 | . . 2 Critical Strikes 1 | . . 1 Damage Taken 985 | . 274 711 Core 260 | . 28 232 Absorbed by Shields . | . . . Core Remaining (%) 100 | 100 . . Volleys Fired 72 | 14 32 26 Largest 2 | 2 2 2 Hottest 70 | 60 70 70 Shots Fired 140 | 28 61 51 Gun 83 | 28 30 25 Cannon 44 | . 29 15 Launcher 13 | . 2 11 Special . | . . . Kinetic 102 | 14 52 36 Thermal 36 | 14 7 15 Explosive 2 | . 2 . Electromagnetic . | . . . Robot Hit Streak 6 | 6 5 5 Robot Miss Streak 6 | 2 6 2 Penetration Max . | . . . Secondary Targets . | . . . Shots Hit Robots 71 | 15 25 31 Core Hits 36 | 7 14 15 Critical Kills . | . . . Critical Parts Destroyed . | . . . Critical Strikes . | . . . Melee Attacks . | . . . Impact . | . . . Slashing . | . . . Piercing . | . . . Sneak Attacks . | . . . Combat Hostiles . | . . . Follow-up Attacks . | . . . Damage Inflicted 1839 | 146 597 1096 Guns 419 | 146 144 129 Cannons 466 | . 256 210 Explosions 954 | . 197 757 Melee . | . . . Ramming . | . . . Kinetic 1419 | 43 345 1031 Thermal 223 | 103 55 65 Explosive 197 | . 197 . Electromagnetic . | . . . Impact . | . . . Slashing . | . . . Piercing . | . . . Highest Corruption . | . . . Average Corruption . | . . . Corruption Purged . | . . . Corruption Blocked . | . . . Overload Shots . | . . . Overflow Damage 85 | . 26 59 Projectiles . | . . . Explosions 85 | . 26 59 Melee . | . . . Knockbacks 7 | . 6 1 Impact . | . . . Kinetic 7 | . 6 1 Secondary . | . . . Self-Inflicted Damage 129 | . . 129 Shots 4 | . . 4 Rammed . | . . . Targets Rammed . | . . . Kicked . | . . . Crushed . | . . . Highest Temperature 40 | 40 32 10 Average Temperature 12 | 16 9 10 Received Heat Transfer 270 | . 78 192 Siege Activations . | . . . Martial Activations . | . . . Shielding Activations . | . . . Robots Disrupted . | . . . Combat Hostiles . | . . . Robots Corrupted . | . . . Combat Hostiles . | . . . Parts Fried . | . . . Impact Corruptions . | . . . Robots Melted . | . . . Combat Hostiles . | . . . Parts Melted . | . . . Heat Transferred 500 | 225 125 150 Parts Sabotaged . | . . . Parts Stolen . | . . . Parts Stripped . | . . . Power Chain Reactions . | . . . Alert | -11 -10 -10 ------- Run | Yrd Mat Sub Maximum Alert Level . | . . . Low Security (%) 100 | 100 100 . Level 1 . | . . . Level 2 . | . . . Level 3 . | . . . Level 4 . | . . . Level 5 . | . . . High Security . | . . . Max Security . | . . . Peak Influence 159 | 10 159 . Initial . | . . . Average 49 | 2 66 . Influence Increases 504 | 25 244 235 Destroy 0b10 Robot/C 340 | . 180 160 Destroy 0b10 Robot/NC 40 | 25 15 . Destroy Leader 32 | . 32 . Successful Hack 5 | . 5 . Destroy Structure 12 | . 12 . Lose Combat Pursuer 75 | . . 75 Influence Decreases 504 | 25 163 316 Entered New Map 40 | . . 40 Time Decay 394 | 25 163 206 Lost Part 70 | . . 70 Squads Dispatched 2 | . 2 . Investigation 2 | . 2 . Extermination . | . . . Reinforcement . | . . . Assault . | . . . Garrison . | . . . Intercept . | . . . Searches Triggered . | . . . Construction Impeded . | . . . Haulers Reinforced . | . . . Active Scanning Responses . | . . . Cargo Convoy Interrupts . | . . . Stealth | -11 -10 -10 --------- Run | Yrd Mat Sub Distress Signals . | . . . Communications Jammed . | . . . Distress Signals . | . . . Times Spotted 29 | . 12 17 Peak Tracking Total 6 | . 3 6 Tactical Retreats 1 | . . 1 Traps | -11 -10 -10 ------- Run | Yrd Mat Sub Traps Triggered 1 | . 1 . Indirectly . | . . . Trap Hack Attempts . | . . . Triggered . | . . . Disarmed . | . . . Reprogrammed . | . . . Reused . | . . . Traps Extracted . | . . . Installed . | . . . Triggered . | . . . Machines | -11 -10 -10 ---------- Run | Yrd Mat Sub Machines Disabled 3 | . . 3 Max in Single Turn 3 | . . 3 Machines Repaired . | . . . Machines Dismantled . | . . . Machines Sabotaged . | . . . Overloaded Fab Kills . | . . . Hacking | -11 -10 -10 --------- Run | Yrd Mat Sub Machines Accessed 4 | . 4 . Terminals 3 | . 3 . Fabricators . | . . . Repair Stations 1 | . 1 . Recycling Units . | . . . Scanalyzers . | . . . Garrison Access . | . . . Total Hacks 11 | . 11 . Successful 2 | . 2 . Failed 9 | . 9 . Catastrophic 1 | . 1 . Database Lockouts . | . . . Manual 9 | . 9 . Terminals 9 | . 9 . Fabricators . | . . . Repair Stations 2 | . 2 . Recycling Units . | . . . Scanalyzers . | . . . Garrison Access . | . . . Terminal Hacks . | . . . Fabricator Hacks . | . . . Repair Station Hacks 1 | . 1 . Scan Component 1 | . 1 . Recycling Unit Hacks . | . . . Scanalyzer . | . . . Garrison Access Hacks . | . . . Unauthorized Hacks 1 | . 1 . Terminals 1 | . 1 . Botnet 1 | . 1 . Fabricators . | . . . Repair Stations . | . . . Recycling Units . | . . . Scanalyzers . | . . . Garrison Access . | . . . Data Cores Recovered . | . . . Used . | . . . Hacking Detections 4 | . 4 . Full Trace Events 1 | . 1 . Feedback Events . | . . . Feedback Blocked . | . . . Robot Schematics Acquired . | . . . Robots Built . | . . . Authchips . | . . . Time . | . . . Total Robot Build Rating . | . . . Part Schematics Acquired . | . . . Parts Built . | . . . Authchips . | . . . Time . | . . . Total Part Build Rating . | . . . Part Studies Acquired . | . . . Parts Repaired . | . . . Time . | . . . Parts Recycled . | . . . Recycled Matter . | . . . Retrieved Matter . | . . . Retrieved Components . | . . . Parts Scanalyzed . | . . . Part Schematics Acquired . | . . . Parts Damaged . | . . . Bothacking | -11 -10 -10 ------------ Run | Yrd Mat Sub Used RIF Installer . | . . . Robots Hacked . | . . . Non-combat . | . . . Combat . | . . . Robot Hacks Applied . | . . . Relay Couplers Released . | . . . Fabnet Peak Effective % . | . . . Robots Rewired . | . . . Allies Hacked . | . . . Hacks Repelled . | . . . Allies | -11 -10 -10 -------- Run | Yrd Mat Sub Total Allies . | . . . Largest Group . | . . . Highest-Rated Group . | . . . Highest-Rated Ally . | . . . Total Orders . | . . . Ally Attacks . | . . . Total Damage . | . . . Kills . | . . . Allies Corrupted . | . . . Allies Melted . | . . . Intel | -11 -10 -10 ------- Run | Yrd Mat Sub Active Infowar (turns) 549 | 16 405 128 Seismic 549 | 16 405 128 Robot Analysis Total . | . . . Derelict Logs Recovered 2 | . . 2 Drone Launches . | . . . Drone Recoveries . | . . . Exploration | -11 -10 -10 ------------- Run | Yrd Mat Sub Turns Passed 1270 | 150 405 715 Spaces Moved 618 | 86 236 296 Core 229 | 6 . 223 Treads . | . . . Legs 342 | 80 236 26 Wheels 47 | . . 47 Hover . | . . . Flight . | . . . Fastest Speed 50 | 50 120 80 Average Speed 164 | 115 120 213 Slowest Speed 250 | 120 120 250 Overloaded Moves . | . . . Propulsion Burnouts . | . . . Robots Hopped . | . . . Potential Cave-ins . | . . . Cave-ins Triggered . | . . . Exploration Rate (%) 21 | 4 38 22 Regions Visited 2 Branch Regions 1 Pre-discovered Areas . | . . . Known Exits Taken 1 | . 1 . Unknown Exits Taken 1 | 1 . . Scrap Searched . | . . . Spaces Dug . | . . . Terrain Destroyed 130 | . 11 119 Melee . | . . . Projectile . | . . . AOE 130 | . 11 119 Terrain Rammed . | . . . Walls Destroyed . | . . . Machines Disabled . | . . . Actions | -11 -10 -10 --------- Run | Yrd Mat Sub Total 742 | 108 301 333 Wait 15 | . 15 . Move 616 | 85 235 296 Hop . | . . . Pick Up 10 | 2 6 2 Fast Attach 10 | 7 1 2 Attach 3 | . . 3 Detach 2 | . 1 1 Swap 7 | . 6 1 Drop 7 | . 5 2 Fire 72 | 14 32 26 Melee . | . . . Ram . | . . . Kick . | . . . Crush . | . . . Escape Stasis . | . . . Rewire . | . . . Trap . | . . . Miscellaneous . | . . . Route ------- -11/Scrapyard -10/Materials (discovered 2 exits: [*Mat] / *Sub) -10/Subcaves (discovered 1 exit: [*Rec]) History --------- Turn | Location | Event 11 | -11/Scrapyard | Discovered new exit (range 16) 151 | -11/Scrapyard | Entered Materials 312 | -10/Materials | Build established: Mutant 502 | -10/Materials | Discovered new exit (range 6) 546 | -10/Materials | Discovered new exit (range 9) 555 | -10/Materials | Identified exit to Subcaves 556 | -10/Materials | Entered Subcaves 560 | -10/Subcaves | Learned 2 Materials zone layouts 675 | -10/Subcaves | Discovered new exit (range 13) 684 | -10/Subcaves | Core integrity fell below 50% 718 | -10/Subcaves | Destroyed 7 combat bots 727 | -10/Subcaves | Lost 5 parts (1p2n1u1w) 1040 | -10/Subcaves | Learned location of 1 exit from Materials 1267 | -10/Subcaves | Core integrity fell below 20% 1271 | -10/Subcaves | Destroyed self with Subdweller Shrapnel Launcher Last Messages --------------- 00693_ 03-X6P(R): "FREEEEDUMB!" 00693_ Lgt. Assault Rifle fries itself beyond repair. 00693_ Acquired 1 matter. 00694_ Lgt. Assault Rifle fries itself beyond repair. 00696_ Wheel destroyed. 00697_ 03-X6P(R) destroyed. 00725_ Acquired 2 matter. 00733_ The unstable cave ceiling collapses. 00775_ Acquired 18 matter. 00777_ Acquired 1 matter. 00789_ Subatomizers dissect the Ion Engine. 00816_ Subatomizers dissect the Sub. Optics. 01040_ Acquired derelict log, extracted data. Data stored: Materials exits (x1). 01098_ Y-45 Defender destroyed. 01116_ Acquired 34 matter. 01197_ Sub. Power Source shoots sparks and powers down. 01268_ Destroyed Sub. Power Source. 01268_ Broken Sub. Power Source destroyed. 01268_ Destroyed Broken Sub. Power Source. Map ----- +----------------------------------------------------+ | ?????????????????????????????????????????????????? | | ?????????????????????????????????????????????????? | | ?????????????????????????????????????????????????? | | ?????????????????????????????????????????????????? | | ?????????????????????????????????????????????????? | | ?????????????????????????????????????????????????? | | ?????????????????????????????????????????????????? | | ?????????????????????????????????????????????????? | | ?????????????????????????????????????????????????? | | ?????????????????????????????????????????????????? | | ?????????????????????????????????????????????????? | | ?????????????????????????????????????????????????? | | ??????????????????????###?????########????###????? | | ?????????????????????## ##??## ##??## ###??? | | ???????????????????### #### ##?# #?## | | ???????????????????# ### #?# | | ??????????????????## ## ## #?## | | ??????????????????# ### ### | | ??????????????????? #" ## | | ???????????????????? ;# ## | | ????????????# ??###?# ;; ### ## | | ????????????# ## ## ;; ### ### | | ?????????????# ####?# | | ?????????????# "###???## | | ?????????????# #?????# | | ??????????????# R @ ;# #?????# | | ??????????????### ### " #?##### | | ????????????????# ## ### ###?# | | ????????????????# ##?# #### # | | ????????????????# ; ;### ###??# ## | | ????????????????##< #####??####????### ### | | ???????????????? ?????????????????#### ##?# | | ???????????????# #" ???????????????????## #### | | ???????????????### ??????????????????## | | ????????????????? ???????????????????# | | ?????????????????##???????????????????# # # | | ??????????????????????????????????????## #### | | ???????????????????????????????????????#####??# | | ??????????????????????????????????????????????#### | | ????????????????????????????????????????????????## | | ???????????????????????????????????????????###?## | | ??????????????????????????????????????????## #?# | | ?????????????????????????????????????????## ### | | ??????????????????????????????????????#### | | ??????????????????????????????????????# | | ??????????????????????????????????????### | | ????????????????????????????????????????## # | | ?????????????????????????????????????????## ## | | ???????????????????????????????????????#### ##? | | ??????????????????????????????????????## #### | +----------------------------------------------------+ Best States ------------- Heat Dissipation 25 Energy Generation 15 Energy Capacity 250 Matter Stores 300 Matter Capacity 300 Sight Range 16 Terrain Scan Density 10 Evasion (%) 55 Item Schematics ----------------- None Robot Schematics ------------------ None Fabricated ------------ Nothing Repaired ---------- Nothing Studied --------- None Alien Tech Used ----------------- None Achievements -------------- None Challenges ------------ None Game ------ Seed LobotomyAluminumLauncher Manual? 0 Play Time 00:13:11 Cumulative 26.0 hours Start 2025.10.23 @ 05:17:09 End 2025.10.23 @ 05:26:41 Sessions 1 Manual Loads 0 Difficulty Rogue Special Mode None Game No. 40 Rogue 17 Adventurer 18 Explorer 5 Win Type - Total 0 Types 0/0/0/0/0/0/0/0/0/0 Lore% 17 Gallery% 37 Achievement% 23 Wizard Run 0 Options --------- Layout 0 ASCII 0 Keyboard 1 Movement Numpad Keybinds 0 Fullscreen 1 Font 18/X11 Map View 38x25 Zoom Use 20% Tactical HUD 1 Map Filters NONE Filters NONE Steam 1 RUN: 7169b916-f884-462d-89e9-76c26309e6bf